[Event "Satka Autumn 2019"]
[Site "Satka"]
[Date "2019.09.21"]
[Round "3.5"]
[White "Nosacheva, Mariya"]
[Black "Mironenko, Galina"]
[Result "1/2-1/2"]
[ECO "C00"]
[WhiteElo "2193"]
[BlackElo "1982"]
[Annotator "NA"]
[PlyCount "143"]
[EventDate "2019.09.19"]
[EventType "swiss"]
[EventCountry "RUS"]
[SourceTitle "playchess.com"]
[Source "ChessBase"]
[SourceQuality "1"]
[TimeControl "5400+30"]

1. e4 {[%emt 0:00:00]} e6 {[%emt 0:00:00]} 2. d3 {[%emt 0:00:00]} d5 {[%emt 0:00:00]} 3. Nd2 {[%emt 0:00:00]} Nf6 {[%emt 0:00:07]} 4. Ngf3 {[%emt 0:00:07]} Nc6 {[%emt 0:00:18]} 5. e5 {[%emt 0:04:15]} Nd7 {[%emt 0:06:14]} 6. Qe2 {[%emt 0:00:59]} Nb4 {[%emt 0:04:45]} 7. Nb3 {[%emt 0:01:08]} c5 {[%emt 0:00:35]} 8. g3 {[%emt 0:00:35]} Qc7 {[%emt 0:01:54]} 9. Bf4 {[%emt 0:01:03]} b5 {[%emt 0:03:51]} 10. Bg2 {[%emt 0:01:55]} Be7 {[%emt 0:04:37]} 11. O-O {[%emt 0:00:31]} h6 {[%emt 0:03:00]} 12. h4 {[%emt 0:00:50]} Bb7 {[%emt 0:01:22]} 13. Rfe1 {[%emt 0:04:45]} a5 {[%emt 0:04:13]} 14. a3 {[%emt 0:12:06]} Nc6 {[%emt 0:01:03]} 15. a4 {[%emt 0:02:46]} bxa4 {[%emt 0:07:10]} 16. Rxa4 {[%emt 0:01:59]} Nb6 {[%emt 0:01:33]} 17. Raa1 {[%emt 0:00:41]} a4 {[%emt 0:02:23]} 18. Nbd2 {[%emt 0:00:19]} Nb4 {[%emt 0:05:40]} 19. Nb1 {[%emt 0:01:24]} d4 {[%emt 0:05:15]} 20. Na3 {[%emt 0:03:13]} Qd7 {[%emt 0:03:27]} 21. h5 {[%emt 0:03:24]} g5 {[%emt 0:04:02]} 22. hxg6 {[%emt 0:02:34]} fxg6 {[%emt 0:00:10]} 23. c3 {[%emt 0:02:18]} N4d5 {[%emt 0:06:42]} 24. Bd2 {[%emt 0:01:00]} Nc7 {[%emt 0:03:44]} 25. cxd4 {[%emt 0:01:58]} cxd4 {[%emt 0:00:28]} 26. Rac1 {[%emt 0:01:10]} Na6 {[%emt 0:08:36]} 27. Ba5 {[%emt 0:03:11]} Bd8 {[%emt 0:01:38]} 28. Bxb6 {[%emt 0:04:10]} Bxb6 {[%emt 0:00:07]} 29. Nc4 {[%emt 0:00:03]} Bc5 {[%emt 0:03:08]} 30. Nd6+ {[%emt 0:00:09]} Bxd6 {[%emt 0:02:38]} 31. exd6 {[%emt 0:00:06]} Qxd6 {[%emt 0:04:50]} 32. Qxe6+ {[%emt 0:00:09]} Qxe6 {[%emt 0:00:03]} 33. Rxe6+ {[%emt 0:00:07]} Kf7 {[%emt 0:00:35]} 34. Rce1 {[%emt 0:06:31]} Bxf3 {[%emt 0:05:25]} 35. Bxf3 {[%emt 0:02:54]} Rae8 {[%emt 0:01:32]} 36. Bd5 {[%emt 0:00:22]} Rxe6 {[%emt 0:00:12]} 37. Rxe6 {[%emt 0:00:17]} Nc7 {[%emt 0:00:32]} 38. Re5+ {[%emt 0:00:52]} Kf6 {[%emt 0:00:56]} 39. f4 {[%emt 0:00:06]} Rb8 {[%emt 0:01:32]} 40. Bc4 {[%emt 0:00:00]} Rxb2 {[%emt 0:00:00]} 41. Ra5 {[%emt 0:00:00]} Rb6 {[%emt 0:00:00]} 42. Kf2 {[%emt 0:00:00]} Ne8 {[%emt 0:00:00]} 43. Rxa4 {[%emt 0:00:00]} Nd6 {[%emt 0:00:00]} 44. Kf3 {[%emt 0:00:00]} h5 {[%emt 0:00:00]} 45. Bd5 {[%emt 0:00:00]} g5 {[%emt 0:00:00]} 46. fxg5+ {[%emt 0:00:00]} Kxg5 {[%emt 0:00:00]} 47. Rxd4 {[%emt 0:00:00]} Nf5 {[%emt 0:00:00]} 48. Ra4 {[%emt 0:00:00]} Rb1 {[%emt 0:00:00]} 49. Be4 {[%emt 0:00:00]} Rf1+ {[%emt 0:00:00]} 50. Kg2 {[%emt 0:00:00]} Ne3+ {[%emt 0:00:00]} 51. Kh3 {[%emt 0:00:00]} Ng4 {[%emt 0:02:04]} 52. Ra5+ {[%emt 0:00:00]} Kh6 {[%emt 0:00:25]} 53. Ra6+ {[%emt 0:00:00]} Rf6 {[%emt 0:03:17]} 54. Rxf6+ {[%emt 0:00:00]} Nxf6 {[%emt 0:00:06]} 55. Kh4 {[%emt 0:00:00]} Ne8 {[%emt 0:01:00]} 56. Bd5 {[%emt 0:00:00]} Ng7 {[%emt 0:00:50]} 57. Be4 {[%emt 0:00:00]} Ne6 {[%emt 0:01:26]} 58. Bf3 {[%emt 0:00:59]} Ng7 {[%emt 0:00:36]} 59. Be4 {[%emt 0:05:01]} Ne6 {[%emt 0:00:23]} 60. Bf5 {[%emt 0:02:32]} Nd4 {[%emt 0:01:07]} 61. Bd7 {[%emt 0:00:36]} Nf3+ {[%emt 0:00:39]} 62. Kh3 {[%emt 0:00:19]} Kg5 {[%emt 0:00:51]} 63. Bc6 {[%emt 0:01:11]} Nd4 {[%emt 0:00:24]} 64. Be4 {[%emt 0:00:07]} Ne2 {[%emt 0:00:54]} 65. Kg2 {[%emt 0:00:10]} Nd4 {[%emt 0:01:20]} 66. Kf2 {[%emt 0:00:10]} Kg4 {[%emt 0:01:45]} 67. Bb7 {[%emt 0:01:38]} h4 {[%emt 0:01:07]} 68. Bc8+ {[%emt 0:00:39]} Kg5 {[%emt 0:00:27]} 69. gxh4+ {[%emt 0:00:04]} Kxh4 {[%emt 0:00:30]} 70. Ke3 {[%emt 0:00:03]} Nb3 {[%emt 0:00:44]} 71. Kf4 {[%emt 0:00:16]} Nc1 {[%emt 0:00:10]} 72. Bf5 {[%emt 0:00:10]} 1/2-1/2

[Event "Satka Autumn 2019"]
[Site "Satka"]
[Date "2019.09.21"]
[Round "3.6"]
[White "Petrenko, Svetlana"]
[Black "Semenova, Elena"]
[Result "1/2-1/2"]
[ECO "C78"]
[WhiteElo "2200"]
[BlackElo "2303"]
[Annotator "NA"]
[PlyCount "102"]
[EventDate "2019.09.19"]
[EventType "swiss"]
[EventCountry "RUS"]
[SourceTitle "playchess.com"]
[Source "ChessBase"]
[SourceQuality "1"]
[TimeControl "5400+30"]

1. e4 {[%emt 0:00:00]} e5 {[%emt 0:00:00]} 2. Nf3 {[%emt 0:00:00]} Nc6 {[%emt 0:00:00]} 3. Bb5 {[%emt 0:00:12]} a6 {[%emt 0:00:00]} 4. Ba4 {[%emt 0:00:11]} Nf6 {[%emt 0:00:04]} 5. O-O {[%emt 0:00:28]} b5 {[%emt 0:00:28]} 6. Bb3 {[%emt 0:00:06]} Bc5 {[%emt 0:00:04]} 7. Qe2 {[%emt 0:03:40]} O-O {[%emt 0:01:22]} 8. c3 {[%emt 0:00:06]} d5 {[%emt 0:05:57]} 9. exd5 {[%emt 0:04:33]} Nxd5 {[%emt 0:01:33]} 10. Nxe5 {[%emt 0:01:13]} Nf4 {[%emt 0:22:06]} 11. Qe4 {[%emt 0:01:55]} Nxe5 {[%emt 0:00:47]} 12. d4 {[%emt 0:02:50]} Bb7 {[%emt 0:01:51]} 13. Qxf4 {[%emt 0:15:36]} Ng6 {[%emt 0:12:45]} 14. Qg4 {[%emt 0:03:53]} Be7 {[%emt 0:00:11]} 15. g3 {[%emt 0:04:48]} c5 {[%emt 0:12:52]} 16. Be3 {[%emt 0:04:31]} Kh8 {[%emt 0:03:19]} 17. Qf5 {[%emt 0:05:13]} Qc7 {[%emt 0:14:18]} 18. Nd2 {[%emt 0:08:42]} Rad8 {[%emt 0:01:23]} 19. f3 {[%emt 0:07:21]} Bc8 {[%emt 0:02:12]} 20. Qh5 {[%emt 0:02:58]} f5 {[%emt 0:00:07]} 21. f4 {[%emt 0:01:44]} Bb7 {[%emt 0:03:52]} 22. Nf3 {[%emt 0:00:54]} Qc6 {[%emt 0:02:12]} 23. Rae1 {[%emt 0:04:05]} a5 {[%emt 0:01:54]} 24. a3 {[%emt 0:03:51]} b4 {[%emt 0:03:02]} 25. d5 {[%emt 0:02:46]} Qb6 {[%emt 0:04:20]} 26. axb4 {[%emt 0:00:43]} Bxd5 {[%emt 0:01:13]} 27. Bxd5 {[%emt 0:00:54]} Rxd5 {[%emt 0:00:01]} 28. bxa5 {[%emt 0:01:30]} Qxb2 {[%emt 0:00:43]} 29. c4 {[%emt 0:03:44]} Rd3 {[%emt 0:01:09]} 30. Bf2 {[%emt 0:02:37]} Qc3 {[%emt 0:00:41]} 31. Ne5 {[%emt 0:00:41]} Nxe5 {[%emt 0:00:57]} 32. Rxe5 {[%emt 0:00:08]} Bf6 {[%emt 0:01:08]} 33. Re8 {[%emt 0:02:06]} Rd8 {[%emt 0:00:06]} 34. Rxf8+ {[%emt 0:00:24]} Rxf8 {[%emt 0:00:04]} 35. Qxf5 {[%emt 0:00:05]} Qxa5 {[%emt 0:00:37]} 36. Qxc5 {[%emt 0:02:44]} Qxc5 {[%emt 0:00:28]} 37. Bxc5 {[%emt 0:00:03]} Rc8 {[%emt 0:00:11]} 38. Re1 {[%emt 0:03:31]} h6 {[%emt 0:00:28]} 39. Bf2 {[%emt 0:02:14]} Rxc4 {[%emt 0:00:09]} 40. Re8+ {[%emt 0:00:00]} Kh7 {[%emt 0:00:00]} 41. Kg2 {[%emt 0:00:00]} Kg6 {[%emt 0:00:00]} 42. h3 {[%emt 0:00:00]} h5 {[%emt 0:00:00]} 43. Kf3 {[%emt 0:00:00]} Rc3+ {[%emt 0:00:00]} 44. Re3 {[%emt 0:00:00]} Rxe3+ {[%emt 0:00:00]} 45. Bxe3 {[%emt 0:00:00]} Kf5 {[%emt 0:00:00]} 46. g4+ {[%emt 0:00:00]} hxg4+ {[%emt 0:00:00]} 47. hxg4+ {[%emt 0:00:00]} Ke6 {[%emt 0:00:00]} 48. Ke4 {[%emt 0:00:00]} g6 {[%emt 0:00:00]} 49. Bd4 {[%emt 0:00:00]} Bd8 {[%emt 0:00:00]} 50. Be5 {[%emt 0:00:00]} Be7 {[%emt 0:00:00]} 51. Bb8 {[%emt 0:00:00]} Bf6 {[%emt 0:00:00]} 1/2-1/2

[Event "Satka Autumn 2019"]
[Site "Satka"]
[Date "2019.09.21"]
[Round "3.7"]
[White "Eidelson, Rakhil"]
[Black "Lysenko, Margarita"]
[Result "1/2-1/2"]
[ECO "A05"]
[WhiteElo "2064"]
[BlackElo "2249"]
[Annotator "NA"]
[PlyCount "92"]
[EventDate "2019.09.19"]
[EventType "swiss"]
[EventCountry "RUS"]
[SourceTitle "playchess.com"]
[Source "ChessBase"]
[SourceQuality "1"]
[TimeControl "5400+30"]

1. Nf3 {[%emt 0:00:09]} Nf6 {[%emt 0:00:00]} 2. g3 {[%emt 0:00:03]} b5 {[%emt 0:00:09]} 3. Na3 {[%emt 0:00:19]} Ba6 {[%emt 0:00:57]} 4. d3 {[%emt 0:00:13]} d5 {[%emt 0:01:41]} 5. Bg2 {[%emt 0:00:05]} e6 {[%emt 0:00:29]} 6. O-O {[%emt 0:00:05]} Nbd7 {[%emt 0:10:09]} 7. c3 {[%emt 0:02:19]} Bd6 {[%emt 0:09:21]} 8. Nc2 {[%emt 0:00:29]} Nb6 {[%emt 0:04:57]} 9. Re1 {[%emt 0:00:59]} O-O {[%emt 0:01:16]} 10. e4 {[%emt 0:05:13]} dxe4 {[%emt 0:08:34]} 11. dxe4 {[%emt 0:02:03]} e5 {[%emt 0:03:30]} 12. Nh4 {[%emt 0:00:52]} g6 {[%emt 0:02:56]} 13. Bg5 {[%emt 0:10:33]} Be7 {[%emt 0:07:38]} 14. Qf3 {[%emt 0:01:22]} Nfd7 {[%emt 0:02:01]} 15. Bxe7 {[%emt 0:06:39]} Qxe7 {[%emt 0:00:42]} 16. Qe2 {[%emt 0:00:40]} c5 {[%emt 0:16:16]} 17. a4 {[%emt 0:10:12]} c4 {[%emt 0:09:28]} 18. Nb4 {[%emt 0:01:12]} Nc5 {[%emt 0:01:06]} 19. Nxa6 {[%emt 0:00:22]} Nxa6 {[%emt 0:00:02]} 20. axb5 {[%emt 0:00:17]} Nc5 {[%emt 0:02:05]} 21. Qe3 {[%emt 0:08:04]} Nb3 {[%emt 0:02:31]} 22. Rad1 {[%emt 0:02:44]} Rfd8 {[%emt 0:03:02]} 23. Bf1 {[%emt 0:02:14]} Kg7 {[%emt 0:01:56]} 24. Nf3 {[%emt 0:01:21]} Qe8 {[%emt 0:01:18]} 25. Rd5 {[%emt 0:14:04]} Nxd5 {[%emt 0:03:30]} 26. exd5 {[%emt 0:00:03]} Qxb5 {[%emt 0:04:02]} 27. Nxe5 {[%emt 0:04:14]} Re8 {[%emt 0:02:49]} 28. Bxc4 {[%emt 0:05:11]} Qb7 {[%emt 0:00:10]} 29. Qf4 {[%emt 0:09:35]} f6 {[%emt 0:00:38]} 30. Nf3 {[%emt 0:00:29]} Na5 {[%emt 0:01:11]} 31. Re4 {[%emt 0:05:15]} Rxe4 {[%emt 0:00:30]} 32. Qxe4 {[%emt 0:00:02]} Nxc4 {[%emt 0:00:32]} 33. Qxc4 {[%emt 0:00:02]} Rd8 {[%emt 0:00:18]} 34. Qc6 {[%emt 0:03:27]} Qxc6 {[%emt 0:00:37]} 35. dxc6 {[%emt 0:00:03]} a5 {[%emt 0:00:36]} 36. Nd4 {[%emt 0:01:53]} Kf7 {[%emt 0:00:05]} 37. b3 {[%emt 0:00:26]} Ke7 {[%emt 0:00:39]} 38. Kf1 {[%emt 0:02:39]} Kd6 {[%emt 0:00:33]} 39. Ke2 {[%emt 0:00:56]} a4 {[%emt 0:00:30]} 40. bxa4 {[%emt 0:00:00]} Ra8 {[%emt 0:00:00]} 41. Ke3 {[%emt 0:00:00]} Rxa4 {[%emt 0:00:00]} 42. Ke4 {[%emt 0:00:00]} Ra2 {[%emt 0:00:00]} 43. Ke3 {[%emt 0:00:00]} Rb2 {[%emt 0:00:00]} 44. Kf3 {[%emt 0:00:00]} Rb1 {[%emt 0:00:00]} 45. h4 {[%emt 0:00:00]} Rc1 {[%emt 0:00:00]} 46. Ke4 {[%emt 0:00:00]} Re1+ {[%emt 0:00:00]} 1/2-1/2

[Event "Satka Autumn 2019"]
[Site "Satka"]
[Date "2019.09.21"]
[Round "3.8"]
[White "Mukhina, Jana"]
[Black "Benderac, Ana"]
[Result "1/2-1/2"]
[ECO "B06"]
[WhiteElo "2083"]
[BlackElo "2228"]
[Annotator "NA"]
[PlyCount "65"]
[EventDate "2019.09.19"]
[EventType "swiss"]
[EventCountry "RUS"]
[SourceTitle "playchess.com"]
[Source "ChessBase"]
[SourceQuality "1"]
[TimeControl "5400+30"]

1. e4 {[%emt 0:00:06]} g6 {[%emt 0:00:00]} 2. d4 {[%emt 0:00:07]} Bg7 {[%emt 0:00:00]} 3. Nc3 {[%emt 0:00:11]} d6 {[%emt 0:01:27]} 4. Be3 {[%emt 0:00:27]} e6 {[%emt 0:03:11]} 5. Qd2 {[%emt 0:06:09]} a6 {[%emt 0:00:51]} 6. h4 {[%emt 0:00:12]} h5 {[%emt 0:04:25]} 7. Bg5 {[%emt 0:01:53]} Bf6 {[%emt 0:02:20]} 8. O-O-O {[%emt 0:04:37]} b5 {[%emt 0:03:31]} 9. Qf4 {[%emt 0:01:27]} Nd7 {[%emt 0:10:58]} 10. e5 {[%emt 0:02:45]} Be7 {[%emt 0:09:40]} 11. Bd3 {[%emt 0:27:38]} Bb7 {[%emt 0:11:28]} 12. f3 {[%emt 0:00:06]} d5 {[%emt 0:12:37]} 13. Nh3 {[%emt 0:02:12]} c5 {[%emt 0:00:35]} 14. Bxb5 {[%emt 0:17:41]} axb5 {[%emt 0:01:02]} 15. Bxe7 {[%emt 0:00:31]} Nxe7 {[%emt 0:07:46]} 16. Nxb5 {[%emt 0:01:23]} Nc8 {[%emt 0:13:20]} 17. Ng5 {[%emt 0:00:54]} O-O {[%emt 0:03:39]} 18. g4 {[%emt 0:00:30]} Qb6 {[%emt 0:00:33]} 19. Na3 {[%emt 0:07:15]} Ne7 {[%emt 0:05:20]} 20. Rdg1 {[%emt 0:01:03]} Ra4 {[%emt 0:04:25]} 21. gxh5 {[%emt 0:07:59]} Rxd4 {[%emt 0:00:13]} 22. Qh2 {[%emt 0:00:14]} Kh8 {[%emt 0:02:56]} 23. hxg6 {[%emt 0:01:00]} Nxg6 {[%emt 0:00:19]} 24. Nxf7+ {[%emt 0:01:47]} Rxf7 {[%emt 0:00:04]} 25. Rxg6 {[%emt 0:00:03]} Qc7 {[%emt 0:00:51]} 26. Qg3 {[%emt 0:03:11]} Nxe5 {[%emt 0:00:10]} 27. Rh6+ {[%emt 0:06:09]} Rh7 {[%emt 0:00:01]} 28. Qg5 {[%emt 0:03:34]} Qg7 {[%emt 0:01:36]} 29. Qd8+ {[%emt 0:02:02]} Qg8 {[%emt 0:00:01]} 30. Qf6+ {[%emt 0:00:54]} Qg7 {[%emt 0:00:01]} 31. Qd8+ {[%emt 0:00:43]} Qg8 {[%emt 0:00:01]} 32. Qf6+ {[%emt 0:00:40]} Qg7 {[%emt 0:00:02]} 33. Qd8+ {[%emt 0:00:07]} 1/2-1/2

[Event "Satka Autumn 2019"]
[Site "Satka"]
[Date "2019.09.21"]
[Round "3.9"]
[White "Prudnikova, Svetlana"]
[Black "Voskresenskaya, Marta"]
[Result "1-0"]
[ECO "D70"]
[WhiteElo "2234"]
[BlackElo "1907"]
[Annotator "NA"]
[PlyCount "95"]
[EventDate "2019.09.19"]
[EventType "swiss"]
[EventCountry "RUS"]
[SourceTitle "playchess.com"]
[Source "ChessBase"]
[SourceQuality "1"]
[TimeControl "5400+30"]

1. d4 {[%emt 0:00:00]} d5 {[%emt 0:00:00]} 2. c4 {[%emt 0:00:00]} c6 {[%emt 0:00:00]} 3. Nf3 {[%emt 0:00:00]} Nf6 {[%emt 0:00:00]} 4. Nbd2 {[%emt 0:00:03]} Bf5 {[%emt 0:01:11]} 5. Nh4 {[%emt 0:00:35]} Bg6 {[%emt 0:00:08]} 6. Qb3 {[%emt 0:01:22]} Qc7 {[%emt 0:03:27]} 7. Nxg6 {[%emt 0:01:48]} hxg6 {[%emt 0:00:04]} 8. g3 {[%emt 0:00:05]} e6 {[%emt 0:00:10]} 9. Bg2 {[%emt 0:00:04]} Nbd7 {[%emt 0:00:50]} 10. O-O {[%emt 0:04:29]} Bd6 {[%emt 0:01:24]} 11. e4 {[%emt 0:00:35]} dxe4 {[%emt 0:00:39]} 12. Nxe4 {[%emt 0:00:01]} Nxe4 {[%emt 0:00:02]} 13. Bxe4 {[%emt 0:00:01]} e5 {[%emt 0:04:50]} 14. dxe5 {[%emt 0:09:51]} Bxe5 {[%emt 0:02:14]} 15. Bg2 {[%emt 0:03:14]} O-O {[%emt 0:04:03]} 16. Be3 {[%emt 0:01:19]} Bd6 {[%emt 0:03:27]} 17. Rfd1 {[%emt 0:08:27]} Rfd8 {[%emt 0:02:58]} 18. Qc2 {[%emt 0:14:29]} Bc5 {[%emt 0:03:48]} 19. Rxd7 {[%emt 0:02:58]} Rxd7 {[%emt 0:00:26]} 20. Bxc5 {[%emt 0:00:06]} Rad8 {[%emt 0:00:15]} 21. Be3 {[%emt 0:02:20]} Qa5 {[%emt 0:05:53]} 22. h4 {[%emt 0:08:12]} Qh5 {[%emt 0:04:14]} 23. Kh2 {[%emt 0:02:43]} Re7 {[%emt 0:05:34]} 24. b4 {[%emt 0:05:34]} Re5 {[%emt 0:04:09]} 25. Qc3 {[%emt 0:08:54]} f6 {[%emt 0:00:54]} 26. Bxa7 {[%emt 0:08:30]} g5 {[%emt 0:01:16]} 27. Bf3 {[%emt 0:03:00]} Qh7 {[%emt 0:01:21]} 28. Bd4 {[%emt 0:02:17]} Re7 {[%emt 0:01:37]} 29. Re1 {[%emt 0:07:48]} Rxe1 {[%emt 0:06:07]} 30. Qxe1 {[%emt 0:00:01]} gxh4 {[%emt 0:00:31]} 31. Qe6+ {[%emt 0:02:10]} Kh8 {[%emt 0:00:22]} 32. Bb6 {[%emt 0:00:46]} hxg3+ {[%emt 0:01:00]} 33. Kxg3 {[%emt 0:00:01]} Qg6+ {[%emt 0:00:23]} 34. Qg4 {[%emt 0:00:02]} Qxg4+ {[%emt 0:00:20]} 35. Kxg4 {[%emt 0:00:22]} Ra8 {[%emt 0:01:23]} 36. b5 {[%emt 0:00:20]} Rxa2 {[%emt 0:01:12]} 37. bxc6 {[%emt 0:00:07]} bxc6 {[%emt 0:00:01]} 38. Bxc6 {[%emt 0:00:27]} g6 {[%emt 0:00:29]} 39. Kg3 {[%emt 0:01:30]} Kg7 {[%emt 0:00:52]} 40. c5 {[%emt 0:00:00]} Kf8 {[%emt 0:00:00]} 41. Be4 {[%emt 0:00:00]} f5 {[%emt 0:00:00]} 42. Bb7 {[%emt 0:00:00]} Ke7 {[%emt 0:00:00]} 43. c6 {[%emt 0:00:00]} Ra3+ {[%emt 0:00:00]} 44. f3 {[%emt 0:00:00]} Rc3 {[%emt 0:00:00]} 45. c7 {[%emt 0:00:00]} Kd7 {[%emt 0:00:00]} 46. c8=Q+ {[%emt 0:00:00]} Rxc8 {[%emt 0:00:00]} 47. Bxc8+ {[%emt 0:00:00]} Kxc8 {[%emt 0:00:00]} 48. Kf4 {[%emt 0:00:00]} 1-0

[Event "Satka Autumn 2019"]
[Site "Satka"]
[Date "2019.09.21"]
[Round "3.10"]
[White "Kalenichenko, Alina"]
[Black "Schepetkova, Margarita"]
[Result "0-1"]
[ECO "E48"]
[WhiteElo "1597"]
[BlackElo "2194"]
[Annotator "NA"]
[PlyCount "74"]
[EventDate "2019.09.19"]
[EventType "swiss"]
[EventCountry "RUS"]
[SourceTitle "playchess.com"]
[Source "ChessBase"]
[SourceQuality "1"]
[TimeControl "5400+30"]

1. d4 {[%emt 0:00:00]} Nf6 {[%emt 0:00:00]} 2. c4 {[%emt 0:00:00]} e6 {[%emt 0:00:00]} 3. Nc3 {[%emt 0:00:00]} Bb4 {[%emt 0:00:00]} 4. e3 {[%emt 0:00:00]} O-O {[%emt 0:00:00]} 5. Bd3 {[%emt 0:00:00]} d5 {[%emt 0:00:07]} 6. Nge2 {[%emt 0:00:01]} dxc4 {[%emt 0:00:05]} 7. Bxc4 {[%emt 0:00:06]} c5 {[%emt 0:00:05]} 8. O-O {[%emt 0:00:16]} cxd4 {[%emt 0:00:23]} 9. exd4 {[%emt 0:00:18]} Nc6 {[%emt 0:00:47]} 10. Bg5 {[%emt 0:00:15]} Be7 {[%emt 0:06:59]} 11. Bd3 {[%emt 0:03:32]} Nd5 {[%emt 0:06:33]} 12. Bxe7 {[%emt 0:00:26]} Ncxe7 {[%emt 0:00:10]} 13. Ng3 {[%emt 0:00:49]} b6 {[%emt 0:10:14]} 14. Qh5 {[%emt 0:02:11]} Nf6 {[%emt 0:06:13]} 15. Qf3 {[%emt 0:01:06]} Rb8 {[%emt 0:03:20]} 16. Rfd1 {[%emt 0:06:35]} Bb7 {[%emt 0:00:14]} 17. Qe3 {[%emt 0:01:28]} Ned5 {[%emt 0:02:05]} 18. Nxd5 {[%emt 0:00:33]} Qxd5 {[%emt 0:01:24]} 19. f3 {[%emt 0:00:20]} Rfd8 {[%emt 0:01:35]} 20. Ne4 {[%emt 0:00:22]} Nxe4 {[%emt 0:01:05]} 21. Bxe4 {[%emt 0:00:17]} Qa5 {[%emt 0:01:21]} 22. a3 {[%emt 0:03:30]} Bd5 {[%emt 0:00:39]} 23. Rac1 {[%emt 0:01:20]} Rbc8 {[%emt 0:01:36]} 24. b4 {[%emt 0:01:22]} Qb5 {[%emt 0:02:37]} 25. Qg5 {[%emt 0:01:19]} f6 {[%emt 0:13:43]} 26. Qh5 {[%emt 0:02:04]} f5 {[%emt 0:00:15]} 27. Bd3 {[%emt 0:01:08]} Rxc1 {[%emt 0:06:00]} 28. Bxb5 {[%emt 0:01:36]} Rxd1+ {[%emt 0:00:05]} 29. Kf2 {[%emt 0:00:06]} Rd2+ {[%emt 0:02:14]} 30. Kg1 {[%emt 0:00:29]} Rc8 {[%emt 0:14:19]} 31. h4 {[%emt 0:01:11]} h6 {[%emt 0:02:14]} 32. Be8 {[%emt 0:03:31]} Rcc2 {[%emt 0:01:12]} 33. Qf7+ {[%emt 0:00:34]} Kh8 {[%emt 0:01:37]} 34. Qf8+ {[%emt 0:00:18]} Kh7 {[%emt 0:00:04]} 35. Bf7 {[%emt 0:00:39]} Rxg2+ {[%emt 0:00:12]} 36. Kf1 {[%emt 0:00:07]} Bc4+ {[%emt 0:00:08]} 37. Ke1 {[%emt 0:00:25]} Rc1# {[%emt 0:00:09]} 0-1

[Event "Satka Autumn 2019"]
[Site "Satka"]
[Date "2019.09.21"]
[Round "3.11"]
[White "Filippova, Darya"]
[Black "Nikulina, Anastasiya"]
[Result "1/2-1/2"]
[ECO "A50"]
[WhiteElo "2110"]
[BlackElo "1540"]
[Annotator "NA"]
[PlyCount "84"]
[EventDate "2019.09.19"]
[EventType "swiss"]
[EventCountry "RUS"]
[SourceTitle "playchess.com"]
[Source "ChessBase"]
[SourceQuality "1"]
[TimeControl "5400+30"]

1. d4 {[%emt 0:00:00]} Nf6 {[%emt 0:00:00]} 2. c4 {[%emt 0:00:00]} b6 {[%emt 0:00:00]} 3. f3 {[%emt 0:04:59]} g6 {[%emt 0:04:39]} 4. e4 {[%emt 0:00:27]} d6 {[%emt 0:00:21]} 5. Be3 {[%emt 0:00:56]} Bg7 {[%emt 0:00:44]} 6. Qd2 {[%emt 0:01:00]} Nbd7 {[%emt 0:06:15]} 7. Nc3 {[%emt 0:00:58]} e5 {[%emt 0:02:02]} 8. d5 {[%emt 0:02:01]} a5 {[%emt 0:09:29]} 9. Bh6 {[%emt 0:01:29]} O-O {[%emt 0:03:04]} 10. Bxg7 {[%emt 0:00:27]} Kxg7 {[%emt 0:00:10]} 11. g4 {[%emt 0:00:29]} Nc5 {[%emt 0:01:08]} 12. Nge2 {[%emt 0:01:20]} Qe7 {[%emt 0:09:54]} 13. Ng3 {[%emt 0:00:47]} h6 {[%emt 0:07:23]} 14. g5 {[%emt 0:05:51]} hxg5 {[%emt 0:00:53]} 15. Qxg5 {[%emt 0:00:51]} Nxd5 {[%emt 0:09:23]} 16. Qd2 {[%emt 0:02:25]} Nxc3 {[%emt 0:02:23]} 17. bxc3 {[%emt 0:02:39]} Qf6 {[%emt 0:02:46]} 18. Qg2 {[%emt 0:03:18]} Qh4 {[%emt 0:07:07]} 19. O-O-O {[%emt 0:01:44]} Kg8 {[%emt 0:05:19]} 20. Rd2 {[%emt 0:02:22]} Be6 {[%emt 0:04:47]} 21. Rg1 {[%emt 0:02:59]} Na4 {[%emt 0:03:47]} 22. Kc2 {[%emt 0:04:53]} Qf4 {[%emt 0:01:46]} 23. Bd3 {[%emt 0:01:18]} Nc5 {[%emt 0:00:50]} 24. Nf5 {[%emt 0:05:30]} Rfe8 {[%emt 0:11:12]} 25. Qh3 {[%emt 0:01:20]} Nxd3 {[%emt 0:02:39]} 26. Rdg2 {[%emt 0:03:26]} Bxf5 {[%emt 0:01:07]} 27. exf5 {[%emt 0:00:10]} Kf8 {[%emt 0:01:54]} 28. fxg6 {[%emt 0:00:26]} Nb4+ {[%emt 0:02:15]} 29. Kb3 {[%emt 0:01:21]} b5 {[%emt 0:00:40]} 30. cxb5 {[%emt 0:07:51]} a4+ {[%emt 0:00:28]} 31. Kb2 {[%emt 0:02:27]} a3+ {[%emt 0:00:23]} 32. Kb1 {[%emt 0:00:43]} Qc4 {[%emt 0:00:38]} 33. g7+ {[%emt 0:05:15]} Ke7 {[%emt 0:00:08]} 34. cxb4 {[%emt 0:00:11]} Qxb4+ {[%emt 0:00:14]} 35. Kc1 {[%emt 0:00:23]} Qc3+ {[%emt 0:00:36]} 36. Kd1 {[%emt 0:00:18]} Qd4+ {[%emt 0:00:57]} 37. Ke2 {[%emt 0:00:47]} Qb2+ {[%emt 0:00:27]} 38. Kf1 {[%emt 0:00:12]} Qc1+ {[%emt 0:00:27]} 39. Kf2 {[%emt 0:00:11]} Qd2+ {[%emt 0:00:14]} 40. Kf1 {[%emt 0:00:00]} Qd1+ {[%emt 0:00:00]} 41. Kf2 {[%emt 0:00:00]} Qd2+ {[%emt 0:00:00]} 42. Kf1 {[%emt 0:00:00]} Qd1+ {[%emt 0:00:00]} 1/2-1/2